[Event "44th Chess Olympiad Open 2022"]
[Site "Chennai"]
[Date "2022.07.30"]
[Round "2.51"]
[White "Fandi, Mazen."]
[Black "Hashem, Khaled"]
[Result "1/2-1/2"]
[WhiteElo "1715"]
[BlackElo "1870"]
[Annotator "NA RC"]
[PlyCount "112"]
[EventDate "2022.??.??"]
[TimeControl "60"]

1. e4 {[%emt 0:01:27]} e5 {[%emt 0:00:04]} 2. Nf3 {[%emt 0:00:39]} Nc6 {
[%emt 0:00:02]} 3. Bc4 {[%emt 0:00:15]} Bc5 {[%emt 0:00:03]} 4. d3 {[%emt 0:00:
00]} d6 {[%emt 0:00:01]} 5. c3 {[%emt 0:00:34]} Nf6 {[%emt 0:00:05]} 6. Nbd2 {
[%emt 0:00:16]} a6 {[%emt 0:01:28]} 7. Bb3 {[%emt 0:00:15]} O-O {[%emt 0:01:15]
} 8. O-O {[%emt 0:00:15]} Ba7 {[%emt 0:03:54]} 9. h3 {[%emt 0:01:56]} Ne7 {
[%emt 0:03:43]} 10. Re1 {[%emt 0:00:35]} Ng6 {[%emt 0:00:41]} 11. Nf1 {[%emt 0:
00:00]} Re8 {[%emt 0:08:24]} 12. Ng3 {[%emt 0:00:21]} Be6 {[%emt 0:00:14]} 13.
Be3 {[%emt 0:02:07]} Bxe3 {[%emt 0:07:18]} 14. fxe3 {[%emt 0:03:40]} h6 {
[%emt 0:09:02]} 15. Bxe6 {[%emt 0:07:12]} Rxe6 {[%emt 0:01:17]} 16. Nf5 {
[%emt 0:04:23]} d5 {[%emt 0:05:56]} 17. exd5 {[%emt 0:03:35]} Qxd5 {[%emt 0:00:
00]} 18. e4 {[%emt 0:02:17]} Qd7 {[%emt 0:02:54]} 19. Qc2 {[%emt 0:01:14]} Rd8
{[%emt 0:01:07]} 20. Rad1 {[%emt 0:04:43]} c5 {[%emt 0:14:41]} 21. g3 {[%emt 0:
00:00]} b5 {[%emt 0:06:56]} 22. Kh2 {[%emt 0:01:30]} a5 {[%emt 0:00:33]} 23. b3
{[%emt 0:04:48]} Ra6 {[%emt 0:02:22]} 24. c4 {[%emt 0:02:28]} b4 {[%emt 0:00:
00]} 25. Ne3 {[%emt 0:01:50]} a4 {[%emt 0:01:45]} 26. Nd5 {[%emt 0:01:41]} Rda8
{[%emt 0:02:48]} 27. Qf2 {[%emt 0:04:49]} Qa7 {[%emt 0:04:03]} 28. Re2 {
[%emt 0:01:31]} axb3 {[%emt 0:03:28]} 29. axb3 {[%emt 0:03:02]} Ra2 {[%emt 0:
00:00]} 30. Rxa2 {[%emt 0:01:12]} Qxa2 {[%emt 0:00:01]} 31. Qxa2 {[%emt 0:00:
00]} Rxa2+ {[%emt 0:00:01]} 32. Rd2 {[%emt 0:00:23]} Ra3 {[%emt 0:00:39]} 33.
Rb2 {[%emt 0:00:30]} Nd7 {[%emt 0:00:11]} 34. Kg2 {[%emt 0:00:37]} Kf8 {
[%emt 0:01:23]} 35. Kf2 {[%emt 0:01:45]} Ne7 {[%emt 0:00:43]} 36. Ne1 {[%emt 0:
00:00]} Nc6 {[%emt 0:01:40]} 37. Nc2 {[%emt 0:01:25]} Ra7 {[%emt 0:00:52]} 38.
Ke1 {[%emt 0:02:44]} f6 {[%emt 0:06:48]} 39. Kd2 {[%emt 0:01:38]} Kf7 {[%emt 0:
00:00]} 40. Nde3 {[%emt 0:03:07]} Nf8 {[%emt 0:05:33]} 41. Nf5 {[%emt 0:34:07]}
Ne6 {[%emt 0:30:28]} 42. Kc1 {[%emt 0:02:38]} Ned4 {[%emt 0:00:00]} 43. Nfxd4 {
[%emt 0:00:00]} Nxd4 {[%emt 0:00:00]} 44. Nxd4 {[%emt 0:00:00]} Ra1+ {[%emt 0:
00:00]} 45. Rb1 {[%emt 0:00:00]} Rxb1+ {[%emt 0:00:00]} 46. Kxb1 {[%emt 0:00:
00]} exd4 {[%emt 0:00:00]} 47. Kc2 {[%emt 0:00:00]} Ke6 {[%emt 0:00:00]} 48.
Kd2 {[%emt 0:00:00]} h5 {[%emt 0:00:00]} 49. Ke2 {[%emt 0:00:00]} g5 {[%emt 0:
00:00]} 50. g4 {[%emt 0:00:00]} hxg4 {[%emt 0:00:00]} 51. hxg4 {[%emt 0:00:00]}
Ke5 {[%emt 0:00:00]} 52. Kf3 {[%emt 0:00:00]} Kd6 {[%emt 0:00:00]} 53. Kg3 {
[%emt 0:00:00]} Ke6 {[%emt 0:00:00]} 54. Kf3 {[%emt 0:00:00]} Ke5 {[%emt 0:00:
00]} 55. Kg3 {[%emt 0:00:00]} Ke6 {[%emt 0:00:00]} 56. Kf3 {[%emt 0:00:00]} Ke5
{[%emt 0:00:00]} 1/2-1/2

[Event "44th Chess Olympiad Open 2022"]
[Site "Chennai"]
[Date "2022.07.30"]
[Round "2.52"]
[White "Nassr, Ali"]
[Black "Chinasamy, Devarajen"]
[Result "1-0"]
[WhiteElo "2263"]
[BlackElo "1970"]
[Annotator "RC"]
[PlyCount "69"]
[EventDate "2022.??.??"]
[TimeControl "60"]

1. d4 {[%emt 0:00:02]} d5 {[%emt 0:00:08]} 2. c4 {[%emt 0:00:32]} c6 {[%emt 0:
00:00]} 3. Nc3 {[%emt 0:00:20]} Nf6 {[%emt 0:00:09]} 4. Nf3 {[%emt 0:00:51]} a6
{[%emt 0:00:13]} 5. cxd5 {[%emt 0:02:51]} cxd5 {[%emt 0:00:21]} 6. Bf4 {
[%emt 0:00:01]} Nc6 {[%emt 0:01:34]} 7. e3 {[%emt 0:00:13]} Bg4 {[%emt 0:00:50]
} 8. h3 {[%emt 0:01:32]} Bf5 {[%emt 0:06:29]} 9. Bd3 {[%emt 0:07:52]} Bxd3 {
[%emt 0:03:20]} 10. Qxd3 {[%emt 0:00:02]} e6 {[%emt 0:00:09]} 11. O-O {[%emt 0:
00:00]} Be7 {[%emt 0:02:16]} 12. Rac1 {[%emt 0:04:09]} O-O {[%emt 0:00:56]} 13.
a3 {[%emt 0:00:47]} Rc8 {[%emt 0:02:30]} 14. Na4 {[%emt 0:01:13]} Ne4 {[%emt 0:
00:00]} 15. b4 {[%emt 0:00:51]} b5 {[%emt 0:04:38]} 16. Nc5 {[%emt 0:00:21]}
Nxc5 {[%emt 0:02:35]} 17. dxc5 {[%emt 0:02:33]} f6 {[%emt 0:02:00]} 18. Qb3 {
[%emt 0:02:31]} Kh8 {[%emt 0:03:46]} 19. Rcd1 {[%emt 0:06:21]} Qe8 {[%emt 0:00:
00]} 20. Rfe1 {[%emt 0:00:49]} Qf7 {[%emt 0:03:28]} 21. Bg3 {[%emt 0:00:54]}
Ne5 {[%emt 0:01:38]} 22. e4 {[%emt 0:08:01]} Nxf3+ {[%emt 0:06:24]} 23. Qxf3 {
[%emt 0:00:15]} dxe4 {[%emt 0:08:14]} 24. Qxe4 {[%emt 0:00:16]} e5 {[%emt 0:00:
00]} 25. Rd7 {[%emt 0:01:10]} Rcd8 {[%emt 0:05:53]} 26. Red1 {[%emt 0:01:23]}
Rxd7 {[%emt 0:02:07]} 27. Rxd7 {[%emt 0:00:09]} Qe6 {[%emt 0:01:14]} 28. Ra7 {
[%emt 0:04:21]} Rb8 {[%emt 0:06:42]} 29. Ra8 {[%emt 0:00:59]} Qc8 {[%emt 0:00:
00]} 30. Rxb8 {[%emt 0:00:08]} Qxb8 {[%emt 0:00:07]} 31. Qc6 {[%emt 0:00:06]}
h6 {[%emt 0:00:40]} 32. Qxa6 {[%emt 0:00:54]} Bd8 {[%emt 0:00:43]} 33. a4 {
[%emt 0:01:55]} bxa4 {[%emt 0:00:04]} 34. Qxa4 {[%emt 0:00:04]} f5 {[%emt 0:00:
00]} 35. Qe8+ {[%emt 0:00:37]} 1-0

[Event "44th Chess Olympiad Open 2022"]
[Site "Chennai"]
[Date "2022.07.30"]
[Round "2.52"]
[White "Djabri, Massinas"]
[Black "Goorsahye, Antoine"]
[Result "1-0"]
[WhiteElo "2206"]
[BlackElo "1783"]
[Annotator "ChessBase"]
[PlyCount "79"]
[EventDate "2022.??.??"]
[TimeControl "60"]

1. d4 {[%emt 0:00:08]} Nf6 {[%emt 0:00:14]} 2. c4 {[%emt 0:00:10]} c5 {[%emt 0:
00:00]} 3. d5 {[%emt 0:01:41]} b5 {[%emt 0:00:30]} 4. cxb5 {[%emt 0:00:10]} a6
{[%emt 0:00:13]} 5. b6 {[%emt 0:00:09]} g6 {[%emt 0:00:42]} 6. Nc3 {[%emt 0:00:
00]} Bg7 {[%emt 0:00:09]} 7. a4 {[%emt 0:00:11]} Qxb6 {[%emt 0:00:25]} 8. a5 {
[%emt 0:00:10]} Qc7 {[%emt 0:00:56]} 9. e4 {[%emt 0:01:48]} d6 {[%emt 0:00:27]}
10. h3 {[%emt 0:02:48]} O-O {[%emt 0:00:36]} 11. Nf3 {[%emt 0:00:13]} e6 {
[%emt 0:01:02]} 12. Be2 {[%emt 0:01:59]} exd5 {[%emt 0:00:28]} 13. exd5 {
[%emt 0:00:06]} Re8 {[%emt 0:00:43]} 14. O-O {[%emt 0:00:13]} Nbd7 {[%emt 0:00:
00]} 15. Ra4 {[%emt 0:22:01]} Rb8 {[%emt 0:03:15]} 16. Re1 {[%emt 0:05:16]} Rb4
{[%emt 0:01:19]} 17. Bc4 {[%emt 0:00:36]} Rxe1+ {[%emt 0:03:31]} 18. Qxe1 {
[%emt 0:00:19]} Bb7 {[%emt 0:01:55]} 19. Qd1 {[%emt 0:13:00]} Qd8 {[%emt 0:00:
00]} 20. Bf4 {[%emt 0:08:50]} Qe7 {[%emt 0:02:15]} 21. Qd3 {[%emt 0:16:38]} Nh5
{[%emt 0:18:22]} 22. Bg5 {[%emt 0:02:45]} f6 {[%emt 0:03:07]} 23. Bc1 {[%emt 0:
00:00]} Ne5 {[%emt 0:01:41]} 24. Nxe5 {[%emt 0:01:12]} Qxe5 {[%emt 0:00:37]}
25. Rxb4 {[%emt 0:00:21]} cxb4 {[%emt 0:01:28]} 26. Ne2 {[%emt 0:00:30]} f5 {
[%emt 0:01:24]} 27. Bxa6 {[%emt 0:10:32]} Bxd5 {[%emt 0:06:10]} 28. Bc4 {
[%emt 0:01:14]} Bf7 {[%emt 0:09:20]} 29. Bxf7+ {[%emt 0:01:07]} Kxf7 {[%emt 0:
00:00]} 30. Qc4+ {[%emt 0:00:22]} d5 {[%emt 0:00:32]} 31. Qb5 {[%emt 0:00:26]}
Bf8 {[%emt 0:02:04]} 32. a6 {[%emt 0:01:03]} Bd6 {[%emt 0:00:38]} 33. a7 {
[%emt 0:01:00]} Qh2+ {[%emt 0:02:12]} 34. Kf1 {[%emt 0:00:04]} Qh1+ {[%emt 0:
00:00]} 35. Ng1 {[%emt 0:00:06]} Bh2 {[%emt 0:01:37]} 36. Qxd5+ {[%emt 0:00:49]
} Kf6 {[%emt 0:00:39]} 37. Qd4+ {[%emt 0:00:22]} Kf7 {[%emt 0:00:43]} 38. Qc4+
{[%emt 0:00:12]} Kf6 {[%emt 0:00:47]} 39. a8=Q {[%emt 0:00:28]} Qxg1+ {[%emt 0:
00:00]} 40. Ke2 {[%emt 0:00:11]} 1-0

[Event "44th Chess Olympiad Open 2022"]
[Site "Chennai"]
[Date "2022.07.30"]
[Round "2.52"]
[White "Marie, Patrick"]
[Black "Araoun, Saadi"]
[Result "0-1"]
[WhiteElo "1921"]
[BlackElo "2049"]
[Annotator "NA"]
[PlyCount "84"]
[EventDate "2022.??.??"]
[TimeControl "60"]

1. d4 {[%emt 0:00:06]} Nf6 {[%emt 0:00:13]} 2. c4 {[%emt 0:00:13]} g6 {[%emt 0:
00:00]} 3. Nc3 {[%emt 0:00:15]} Bg7 {[%emt 0:00:06]} 4. e4 {[%emt 0:00:15]} d6
{[%emt 0:00:17]} 5. Nf3 {[%emt 0:00:14]} O-O {[%emt 0:00:19]} 6. Be2 {[%emt 0:
00:00]} e5 {[%emt 0:00:27]} 7. O-O {[%emt 0:02:45]} Nc6 {[%emt 0:00:57]} 8.
dxe5 {[%emt 0:03:14]} dxe5 {[%emt 0:01:43]} 9. Bg5 {[%emt 0:02:26]} Qe8 {
[%emt 0:14:09]} 10. Qd2 {[%emt 0:06:12]} Bg4 {[%emt 0:09:30]} 11. Bxf6 {
[%emt 0:07:37]} Bxf6 {[%emt 0:00:18]} 12. Nd5 {[%emt 0:00:02]} Bd8 {[%emt 0:00:
00]} 13. Rac1 {[%emt 0:16:14]} Bxf3 {[%emt 0:05:04]} 14. Bxf3 {[%emt 0:00:02]}
Nd4 {[%emt 0:00:20]} 15. Rc3 {[%emt 0:00:49]} c6 {[%emt 0:00:49]} 16. Nb4 {
[%emt 0:02:30]} Ba5 {[%emt 0:09:06]} 17. Rd3 {[%emt 0:00:38]} Qe6 {[%emt 0:00:
00]} 18. Bd1 {[%emt 0:00:24]} c5 {[%emt 0:07:42]} 19. Qh6 {[%emt 0:00:02]} cxb4
{[%emt 0:01:53]} 20. Rh3 {[%emt 0:00:02]} Rfd8 {[%emt 0:00:33]} 21. Bg4 {
[%emt 0:04:40]} Qf6 {[%emt 0:02:24]} 22. Qxh7+ {[%emt 0:00:55]} Kf8 {[%emt 0:
00:00]} 23. c5 {[%emt 0:04:10]} Ke7 {[%emt 0:01:25]} 24. Qh6 {[%emt 0:02:01]}
g5 {[%emt 0:01:12]} 25. Qxf6+ {[%emt 0:02:05]} Kxf6 {[%emt 0:00:06]} 26. Rh6+ {
[%emt 0:00:40]} Kg7 {[%emt 0:01:08]} 27. Rd6 {[%emt 0:00:44]} Bc7 {[%emt 0:00:
00]} 28. Rd5 {[%emt 0:00:01]} Ne6 {[%emt 0:04:55]} 29. Rfd1 {[%emt 0:06:32]}
Rxd5 {[%emt 0:00:23]} 30. Rxd5 {[%emt 0:01:21]} Rd8 {[%emt 0:00:28]} 31. Rxd8 {
[%emt 0:00:04]} Bxd8 {[%emt 0:00:19]} 32. Bxe6 {[%emt 0:00:06]} fxe6 {[%emt 0:
00:00]} 33. Kf1 {[%emt 0:00:01]} Be7 {[%emt 0:00:25]} 34. Ke2 {[%emt 0:00:14]}
Bxc5 {[%emt 0:00:06]} 35. f3 {[%emt 0:00:01]} Kf6 {[%emt 0:01:14]} 36. g3 {
[%emt 0:00:05]} Bg1 {[%emt 0:00:46]} 37. h3 {[%emt 0:00:37]} Ke7 {[%emt 0:00:
00]} 38. Kd3 {[%emt 0:01:11]} b5 {[%emt 0:00:17]} 39. b3 {[%emt 0:00:26]} Bf2 {
[%emt 0:00:14]} 40. g4 {[%emt 0:00:02]} Kd6 {[%emt 0:00:06]} 41. Kc2 {[%emt 0:
00:00]} Kc5 {[%emt 0:30:05]} 42. Kd3 {[%emt 0:00:57]} Bg3 {[%emt 0:02:55]} 0-1

[Event "44th Chess Olympiad Open 2022"]
[Site "Chennai"]
[Date "2022.07.30"]
[Round "2.52"]
[White "Naipal, Hoolan"]
[Black "Brahami, Lamine"]
[Result "0-1"]
[WhiteElo "1785"]
[BlackElo "2189"]
[Annotator "RC"]
[PlyCount "100"]
[EventDate "2022.??.??"]
[TimeControl "60"]

1. e4 {[%emt 0:00:09]} c5 {[%emt 0:00:22]} 2. Nf3 {[%emt 0:00:11]} d6 {[%emt 0:
00:00]} 3. Bb5+ {[%emt 0:00:17]} Nd7 {[%emt 0:01:28]} 4. O-O {[%emt 0:00:22]}
e6 {[%emt 0:01:10]} 5. c3 {[%emt 0:01:03]} a6 {[%emt 0:04:05]} 6. Bd3 {[%emt 0:
00:00]} Ne7 {[%emt 0:03:43]} 7. Bc2 {[%emt 0:00:31]} Ng6 {[%emt 0:00:53]} 8. d4
{[%emt 0:00:22]} Be7 {[%emt 0:00:36]} 9. a4 {[%emt 0:11:50]} b6 {[%emt 0:03:44]
} 10. Qe2 {[%emt 0:01:23]} O-O {[%emt 0:06:05]} 11. Rd1 {[%emt 0:08:27]} Qc7 {
[%emt 0:03:17]} 12. Be3 {[%emt 0:06:05]} Bb7 {[%emt 0:03:35]} 13. Nbd2 {
[%emt 0:06:55]} cxd4 {[%emt 0:12:36]} 14. Nxd4 {[%emt 0:00:36]} Rfe8 {[%emt 0:
00:00]} 15. Rac1 {[%emt 0:14:40]} Bf8 {[%emt 0:12:50]} 16. f3 {[%emt 0:09:32]}
d5 {[%emt 0:02:49]} 17. exd5 {[%emt 0:07:57]} exd5 {[%emt 0:08:43]} 18. Qf2 {
[%emt 0:08:57]} Bc5 {[%emt 0:04:36]} 19. Re1 {[%emt 0:07:29]} Re5 {[%emt 0:00:
00]} 20. Nf1 {[%emt 0:04:55]} Nf6 {[%emt 0:04:28]} 21. b4 {[%emt 0:03:58]} Bf8
{[%emt 0:04:32]} 22. Nf5 {[%emt 0:00:22]} Qd7 {[%emt 0:04:27]} 23. N1g3 {
[%emt 0:01:11]} Rxe3 {[%emt 0:07:15]} 24. Qxe3 {[%emt 0:00:37]} Qc7 {[%emt 0:
00:00]} 25. Bb3 {[%emt 0:00:54]} a5 {[%emt 0:00:19]} 26. Nd4 {[%emt 0:02:04]}
axb4 {[%emt 0:00:52]} 27. cxb4 {[%emt 0:00:08]} Qd6 {[%emt 0:00:37]} 28. Qd2 {
[%emt 0:00:27]} Qxb4 {[%emt 0:00:31]} 29. Qxb4 {[%emt 0:00:36]} Bxb4 {[%emt 0:
00:00]} 30. Red1 {[%emt 0:00:14]} Bc5 {[%emt 0:01:00]} 31. Kh1 {[%emt 0:01:02]}
h5 {[%emt 0:00:28]} 32. Nge2 {[%emt 0:01:17]} h4 {[%emt 0:00:41]} 33. h3 {
[%emt 0:00:50]} Ba6 {[%emt 0:00:35]} 34. Nc3 {[%emt 0:00:15]} Nf4 {[%emt 0:00:
00]} 35. Ncb5 {[%emt 0:00:27]} Rd8 {[%emt 0:00:39]} 36. Kh2 {[%emt 0:00:31]}
Bc8 {[%emt 0:00:23]} 37. Bc2 {[%emt 0:00:44]} g6 {[%emt 0:00:21]} 38. Kh1 {
[%emt 0:00:22]} Bd7 {[%emt 0:00:26]} 39. Kh2 {[%emt 0:00:12]} N6h5 {[%emt 0:00:
00]} 40. Re1 {[%emt 0:00:52]} Bxb5 {[%emt 0:00:34]} 41. Nxb5 {[%emt 0:30:15]}
d4 {[%emt 0:30:11]} 42. Rcd1 {[%emt 0:00:50]} d3 {[%emt 0:00:22]} 43. Bb3 {
[%emt 0:00:21]} Ng3 {[%emt 0:01:11]} 44. Nc3 {[%emt 0:00:44]} Bb4 {[%emt 0:00:
00]} 45. Ne4 {[%emt 0:00:18]} Bxe1 {[%emt 0:00:00]} 46. Rxe1 {[%emt 0:00:00]}
Nxe4 {[%emt 0:00:00]} 47. fxe4 {[%emt 0:00:00]} d2 {[%emt 0:00:00]} 48. Rf1 {
[%emt 0:00:00]} g5 {[%emt 0:00:00]} 49. g3 {[%emt 0:00:00]} hxg3+ {[%emt 0:00:
00]} 50. Kxg3 {[%emt 0:00:12]} Rd3+ {[%emt 0:00:00]} 0-1

[Event "44th Chess Olympiad Open 2022"]
[Site "Chennai"]
[Date "2022.07.30"]
[Round "2.53"]
[White "Ahmad, Al Khatib"]
[Black "Salim Mohammed, Salim Al Amri"]
[Result "0-1"]
[WhiteElo "2244"]
[BlackElo "1917"]
[Annotator "ChessBase"]
[PlyCount "100"]
[EventDate "2022.??.??"]
[TimeControl "60"]

1. e4 {[%emt 0:00:03]} c5 {[%emt 0:00:07]} 2. Nf3 {[%emt 0:00:05]} Nc6 {
[%emt 0:01:04]} 3. d4 {[%emt 0:00:05]} cxd4 {[%emt 0:00:08]} 4. Nxd4 {[%emt 0:
00:00]} Nf6 {[%emt 0:00:55]} 5. Nc3 {[%emt 0:00:04]} d6 {[%emt 0:00:57]} 6. Bc4
{[%emt 0:01:47]} g6 {[%emt 0:06:30]} 7. Nxc6 {[%emt 0:17:11]} bxc6 {[%emt 0:00:
00]} 8. e5 {[%emt 0:00:23]} Ng4 {[%emt 0:08:05]} 9. e6 {[%emt 0:01:33]} f5 {
[%emt 0:00:58]} 10. Bf4 {[%emt 0:09:58]} Bg7 {[%emt 0:07:29]} 11. Qf3 {[%emt 0:
00:00]} Qb6 {[%emt 0:05:46]} 12. O-O {[%emt 0:00:59]} Ne5 {[%emt 0:01:23]} 13.
Bxe5 {[%emt 0:02:22]} Bxe5 {[%emt 0:00:03]} 14. Bb5 {[%emt 0:07:28]} Bb7 {
[%emt 0:05:14]} 15. Nd5 {[%emt 0:01:03]} cxb5 {[%emt 0:01:35]} 16. Nxb6 {
[%emt 0:04:30]} Bxf3 {[%emt 0:00:17]} 17. Nxa8 {[%emt 0:00:06]} Bxa8 {[%emt 0:
00:00]} 18. c3 {[%emt 0:03:51]} f4 {[%emt 0:00:41]} 19. a4 {[%emt 0:00:34]} b4
{[%emt 0:00:28]} 20. cxb4 {[%emt 0:00:37]} O-O {[%emt 0:00:30]} 21. Rac1 {
[%emt 0:02:39]} d5 {[%emt 0:01:31]} 22. Rfe1 {[%emt 0:03:01]} Bd6 {[%emt 0:00:
00]} 23. b5 {[%emt 0:01:15]} Kg7 {[%emt 0:00:27]} 24. f3 {[%emt 0:11:51]} Kf6 {
[%emt 0:00:22]} 25. Re2 {[%emt 0:01:41]} Rb8 {[%emt 0:00:34]} 26. Kf1 {[%emt 0:
00:00]} Bb7 {[%emt 0:02:55]} 27. g4 {[%emt 0:07:11]} fxg3 {[%emt 0:01:27]} 28.
hxg3 {[%emt 0:00:01]} Bxg3 {[%emt 0:00:07]} 29. a5 {[%emt 0:00:56]} Bc8 {
[%emt 0:02:46]} 30. Kg2 {[%emt 0:00:36]} Bd6 {[%emt 0:00:19]} 31. Rc6 {[%emt 0:
00:00]} Bxe6 {[%emt 0:01:29]} 32. b6 {[%emt 0:00:01]} axb6 {[%emt 0:00:39]} 33.
a6 {[%emt 0:00:01]} h5 {[%emt 0:00:40]} 34. b4 {[%emt 0:00:22]} h4 {[%emt 0:00:
00]} 35. b5 {[%emt 0:01:01]} h3+ {[%emt 0:00:10]} 36. Kh1 {[%emt 0:00:37]} Bd7
{[%emt 0:00:56]} 37. Rxb6 {[%emt 0:00:58]} Rxb6 {[%emt 0:00:10]} 38. a7 {
[%emt 0:00:29]} Rxb5 {[%emt 0:00:15]} 39. Re1 {[%emt 0:00:32]} Ra5 {[%emt 0:00:
00]} 40. Rd1 {[%emt 0:00:30]} Rxa7 {[%emt 0:00:06]} 41. Kg1 {[%emt 0:30:16]}
Bg3 {[%emt 0:30:14]} 42. Rb1 {[%emt 0:00:31]} d4 {[%emt 0:00:15]} 43. Rc1 {
[%emt 0:00:40]} e6 {[%emt 0:00:09]} 44. Kf1 {[%emt 0:00:19]} Ra2 {[%emt 0:00:
00]} 45. Kg1 {[%emt 0:00:35]} Bc6 {[%emt 0:00:18]} 46. Rf1 {[%emt 0:00:37]} d3
{[%emt 0:00:14]} 47. Kh1 {[%emt 0:00:30]} Kg7 {[%emt 0:00:23]} 48. Kg1 {
[%emt 0:00:27]} d2 {[%emt 0:00:40]} 49. Rb1 {[%emt 0:00:34]} d1=Q+ {[%emt 0:00:
00]} 50. Rxd1 {[%emt 0:00:04]} h2+ {[%emt 0:00:06]} 0-1

[Event "44th Chess Olympiad Open 2022"]
[Site "Chennai"]
[Date "2022.07.30"]
[Round "2.53"]
[White "Salim Al Maashani Amer Said"]
[Black "Mansour, Sameer"]
[Result "1-0"]
[WhiteElo "2038"]
[BlackElo "2275"]
[Annotator "RC"]
[PlyCount "145"]
[EventDate "2022.??.??"]
[TimeControl "60"]

1. e4 {[%emt 0:00:03]} c5 {[%emt 0:00:08]} 2. Nf3 {[%emt 0:00:05]} Nc6 {
[%emt 0:00:18]} 3. Bb5 {[%emt 0:00:06]} g6 {[%emt 0:00:26]} 4. Bxc6 {[%emt 0:
00:00]} dxc6 {[%emt 0:00:29]} 5. d3 {[%emt 0:00:07]} Bg7 {[%emt 0:00:25]} 6. h3
{[%emt 0:00:11]} Nf6 {[%emt 0:00:48]} 7. Nc3 {[%emt 0:00:33]} Nd7 {[%emt 0:00:
00]} 8. Be3 {[%emt 0:00:11]} e5 {[%emt 0:00:28]} 9. Qd2 {[%emt 0:00:11]} h6 {
[%emt 0:00:35]} 10. O-O {[%emt 0:04:12]} b6 {[%emt 0:00:10]} 11. Nh2 {[%emt 0:
00:00]} Nf8 {[%emt 0:00:09]} 12. f4 {[%emt 0:01:12]} exf4 {[%emt 0:00:18]} 13.
Bxf4 {[%emt 0:00:09]} Ne6 {[%emt 0:00:19]} 14. Bg3 {[%emt 0:01:03]} Qg5 {
[%emt 0:03:46]} 15. Qxg5 {[%emt 0:02:47]} hxg5 {[%emt 0:14:19]} 16. Ng4 {
[%emt 0:10:26]} Nd4 {[%emt 0:05:53]} 17. Be5 {[%emt 0:10:39]} Bxe5 {[%emt 0:00:
00]} 18. Nxe5 {[%emt 0:00:27]} Be6 {[%emt 0:00:36]} 19. Rf2 {[%emt 0:00:32]}
Ke7 {[%emt 0:01:05]} 20. Raf1 {[%emt 0:06:22]} Rh7 {[%emt 0:01:18]} 21. Nd1 {
[%emt 0:03:12]} g4 {[%emt 0:12:54]} 22. c3 {[%emt 0:05:46]} g3 {[%emt 0:01:00]}
23. Rd2 {[%emt 0:01:04]} Nb5 {[%emt 0:00:48]} 24. Rf3 {[%emt 0:02:53]} Rh5 {
[%emt 0:03:40]} 25. Ng4 {[%emt 0:09:03]} Bxa2 {[%emt 0:07:09]} 26. Rxg3 {
[%emt 0:01:26]} Be6 {[%emt 0:00:11]} 27. Rf3 {[%emt 0:07:32]} Nd6 {[%emt 0:00:
00]} 28. Re2 {[%emt 0:04:06]} Nb5 {[%emt 0:12:21]} 29. Nf6 {[%emt 0:01:56]}
Rhh8 {[%emt 0:01:53]} 30. Ne3 {[%emt 0:01:51]} Kd6 {[%emt 0:06:03]} 31. Nc4+ {
[%emt 0:04:24]} Kc7 {[%emt 0:01:57]} 32. Ne5 {[%emt 0:00:27]} Rad8 {[%emt 0:00:
00]} 33. Kf2 {[%emt 0:07:03]} a5 {[%emt 0:00:03]} 34. Nfg4 {[%emt 0:02:31]} Rh7
{[%emt 0:01:10]} 35. Nf6 {[%emt 0:02:03]} Rhh8 {[%emt 0:03:05]} 36. Nfg4 {
[%emt 0:00:07]} Nd6 {[%emt 0:02:01]} 37. Rf6 {[%emt 0:02:06]} a4 {[%emt 0:00:
00]} 38. Ke3 {[%emt 0:03:27]} b5 {[%emt 0:00:48]} 39. Ref2 {[%emt 0:02:14]} Rh7
{[%emt 0:05:50]} 40. Rf1 {[%emt 0:02:52]} Ra8 {[%emt 0:01:47]} 41. Ra1 {
[%emt 0:32:30]} Ra6 {[%emt 0:33:24]} 42. Rf2 {[%emt 0:00:00]} Rh8 {[%emt 0:00:
00]} 43. d4 {[%emt 0:00:00]} cxd4+ {[%emt 0:00:00]} 44. cxd4 {[%emt 0:00:00]}
Rha8 {[%emt 0:00:00]} 45. Rc2 {[%emt 0:00:00]} a3 {[%emt 0:00:00]} 46. bxa3 {
[%emt 0:00:00]} Rxa3+ {[%emt 0:00:00]} 47. Rxa3 {[%emt 0:00:00]} Rxa3+ {
[%emt 0:00:00]} 48. Kf4 {[%emt 0:00:00]} Nc4 {[%emt 0:00:00]} 49. Nxc4 {
[%emt 0:00:00]} bxc4 {[%emt 0:00:00]} 50. Ke5 {[%emt 0:00:00]} Rd3 {[%emt 0:00:
00]} 51. Nf6 {[%emt 0:00:00]} c3 {[%emt 0:00:00]} 52. d5 {[%emt 0:02:16]} cxd5
{[%emt 0:00:00]} 53. Nxd5+ {[%emt 0:02:08]} Bxd5 {[%emt 0:00:00]} 54. exd5 {
[%emt 0:00:01]} Kd7 {[%emt 0:00:00]} 55. Ke4 {[%emt 0:01:27]} Rd2 {[%emt 0:00:
00]} 56. Rxc3 {[%emt 0:00:09]} Rxg2 {[%emt 0:00:00]} 57. Ra3 {[%emt 0:01:21]}
Re2+ {[%emt 0:00:00]} 58. Kd4 {[%emt 0:00:23]} Rh2 {[%emt 0:00:00]} 59. Ra7+ {
[%emt 0:01:10]} Ke8 {[%emt 0:00:00]} 60. d6 {[%emt 0:00:59]} Rxh3 {[%emt 0:00:
00]} 61. Re7+ {[%emt 0:00:20]} Kf8 {[%emt 0:00:00]} 62. Re2 {[%emt 0:00:41]}
Rh1 {[%emt 0:00:00]} 63. Kc5 {[%emt 0:01:05]} Rd1 {[%emt 0:02:21]} 64. Kc6 {
[%emt 0:00:17]} f5 {[%emt 0:01:31]} 65. d7 {[%emt 0:00:33]} Kf7 {[%emt 0:00:22]
} 66. Re8 {[%emt 0:00:39]} Kf6 {[%emt 0:04:45]} 67. d8=Q+ {[%emt 0:00:35]} Rxd8
{[%emt 0:00:06]} 68. Rxd8 {[%emt 0:00:02]} Ke5 {[%emt 0:00:11]} 69. Kc5 {
[%emt 0:00:32]} Ke4 {[%emt 0:00:11]} 70. Kc4 {[%emt 0:00:49]} Ke3 {[%emt 0:00:
00]} 71. Re8+ {[%emt 0:00:35]} Kd2 {[%emt 0:00:30]} 72. Kd4 {[%emt 0:00:18]}
Kd1 {[%emt 0:03:09]} 73. Ke5 {[%emt 0:00:26]} 1-0

[Event "44th Chess Olympiad Open 2022"]
[Site "Chennai"]
[Date "2022.07.30"]
[Round "2.53"]
[White "Boshra, Alshaeby"]
[Black "Al Kathiri, Mana"]
[Result "0-1"]
[WhiteElo "1854"]
[BlackElo "1598"]
[Annotator "NA RC"]
[PlyCount "72"]
[EventDate "2022.??.??"]
[TimeControl "60"]

1. e4 {[%emt 0:00:04]} c6 {[%emt 0:00:15]} 2. d4 {[%emt 0:00:21]} d5 {[%emt 0:
00:00]} 3. e5 {[%emt 0:00:05]} Bf5 {[%emt 0:00:15]} 4. Nd2 {[%emt 0:00:05]} e6
{[%emt 0:00:47]} 5. Nb3 {[%emt 0:00:09]} Nd7 {[%emt 0:02:43]} 6. Nf3 {[%emt 0:
00:00]} Qc7 {[%emt 0:01:36]} 7. Be2 {[%emt 0:06:09]} c5 {[%emt 0:02:24]} 8.
dxc5 {[%emt 0:03:36]} Nxc5 {[%emt 0:13:36]} 9. Nxc5 {[%emt 0:02:19]} Bxc5 {
[%emt 0:00:25]} 10. Bb5+ {[%emt 0:00:36]} Kf8 {[%emt 0:00:02]} 11. O-O {
[%emt 0:01:08]} Ne7 {[%emt 0:01:18]} 12. b4 {[%emt 0:25:15]} Bxb4 {[%emt 0:00:
00]} 13. Bd3 {[%emt 0:03:22]} Bg4 {[%emt 0:11:31]} 14. Rb1 {[%emt 0:13:13]} Bc5
{[%emt 0:05:29]} 15. h3 {[%emt 0:01:14]} Bh5 {[%emt 0:00:28]} 16. Re1 {[%emt 0:
00:00]} Nc6 {[%emt 0:04:48]} 17. g4 {[%emt 0:03:04]} Bg6 {[%emt 0:00:14]} 18.
Kg2 {[%emt 0:06:25]} Rd8 {[%emt 0:06:01]} 19. Qe2 {[%emt 0:01:31]} Nd4 {
[%emt 0:07:47]} 20. Nxd4 {[%emt 0:00:35]} Bxd4 {[%emt 0:00:12]} 21. Ba3+ {
[%emt 0:00:21]} Kg8 {[%emt 0:02:19]} 22. Bd6 {[%emt 0:01:57]} Qc6 {[%emt 0:00:
00]} 23. f4 {[%emt 0:06:49]} Bxd3 {[%emt 0:12:23]} 24. Qxd3 {[%emt 0:00:35]}
Bb6 {[%emt 0:00:43]} 25. f5 {[%emt 0:03:42]} Rc8 {[%emt 0:05:16]} 26. Re2 {
[%emt 0:00:32]} g6 {[%emt 0:05:35]} 27. Be7 {[%emt 0:02:00]} Bd8 {[%emt 0:00:
00]} 28. Ba3 {[%emt 0:01:14]} Kg7 {[%emt 0:03:03]} 29. f6+ {[%emt 0:00:04]} Kg8
{[%emt 0:00:13]} 30. Rb3 {[%emt 0:00:26]} h5 {[%emt 0:00:45]} 31. Kg3 {[%emt 0:
00:00]} Bb6 {[%emt 0:00:33]} 32. Rh2 {[%emt 0:00:36]} Qc4 {[%emt 0:01:45]} 33.
Re2 {[%emt 0:00:34]} Rc6 {[%emt 0:01:27]} 34. Qf3 {[%emt 0:00:21]} Qd4 {
[%emt 0:00:29]} 35. Ree3 {[%emt 0:00:36]} Rxc2 {[%emt 0:00:46]} 36. Rbd3 {
[%emt 0:00:37]} h4# {[%emt 0:00:03]} 0-1